Workbook

Sheet 請求書
F3: =LEFT('【始めに入力下さい】 基本情報入力'!$C$25) ->  | AV3: 請 求 書
EK6: 消費税端数処理 | FC6: =消費税マスタ!$D$3 -> 無
CD7: 取引先コード | CS7: =IF('【始めに入力下さい】 基本情報入力'!$C$9="","",MID('【始めに入力下さい】 基本情報入力'!$C$9,1,1)) ->  | CV7: =IF('【始めに入力下さい】 基本情報入力'!$C$9="","",MID('【始めに入力下さい】 基本情報入力'!$C$9,2,1)) ->  | CY7: =IF('【始めに入力下さい】 基本情報入力'!$C$9="","",MID('【始めに入力下さい】 基本情報入力'!$C$9,3,1)) ->  | DB7: =IF('【始めに入力下さい】 基本情報入力'!$C$9="","",MID('【始めに入力下さい】 基本情報入力'!$C$9,4,1)) ->  | DE7: =IF('【始めに入力下さい】 基本情報入力'!$C$9="","",MID('【始めに入力下さい】 基本情報入力'!$C$9,5,1)) ->  | DH7: =IF('【始めに入力下さい】 基本情報入力'!$C$9="","",MID('【始めに入力下さい】 基本情報入力'!$C$9,6,1)) -> 
G8: 株式会社ミスタービルド埼玉 御中 | BD8: 年 | BK8: 月 | BR8: 日
CD11: 登録番号 | CS11: =IF('【始めに入力下さい】 基本情報入力'!$C$12="","",'【始めに入力下さい】 基本情報入力'!$C$12) -> 
J13: 下記のとおり御請求申し上げます。
G16: 当月請求額（税込） | Y16: =$CS$70 -> 1154000
BD17: 住所 | BO17: =IF('【始めに入力下さい】 基本情報入力'!$K$17="有",'【始めに入力下さい】 基本情報入力'!$C$17,"") -> 0
BD21: 会社名 （氏名） | BO21: =IF('【始めに入力下さい】 基本情報入力'!$K$19="有",'【始めに入力下さい】 基本情報入力'!$C$19,"") -> 0
G22: 立替控除額（税込）
G26: 当月請求額（税込） （立替控除後） | Y26: =$Y$16+$Y$22 -> 1154000 | DB26: 印
BD27: TEL | BO27: =IF('【始めに入力下さい】 基本情報入力'!$K$29="有",CONCATENATE('【始めに入力下さい】 基本情報入力'!$C$29," - ",'【始めに入力下さい】 基本情報入力'!$E$29," - ",'【始めに入力下さい】 基本情報入力'!$G$29),"") -> - -
G32: 所長名 （ミスタービルド埼玉） | BC32: 工事件名
G36: 注文番号 | BC36: 品目及内容
AU41: 内訳明細
G46: 日付 | Q46: 品目規格又は作業内容 | BA46: 単位 | BK46: 数量 | BU46: 単価 | CE46: 消費税区分 | CO46: 税抜金額
G47: 11/30 | Q47: 出来高調書通り | BA47: 式 | BK47: 1 | BU47: 1000000 | CE47: １０％ | CO47: =IF(BU47="","",IF(BK47="","数量未入力",IF(CE47="","消費税区分未入力",ROUNDDOWN(BK47*BU47,0)))) -> 1000000
G48: 11/30 | Q48: 添付明細書通り | BA48: 式 | BK48: 1 | BU48: 50000 | CE48: ８％(軽) | CO48: =IF(BU48="","",IF(BK48="","数量未入力",IF(CE48="","消費税区分未入力",ROUNDDOWN(BK48*BU48,0)))) -> 50000
CO49: =IF(BU49="","",IF(BK49="","数量未入力",IF(CE49="","消費税区分未入力",ROUNDDOWN(BK49*BU49,0)))) -> 
CO50: =IF(BU50="","",IF(BK50="","数量未入力",IF(CE50="","消費税区分未入力",ROUNDDOWN(BK50*BU50,0)))) -> 
CO51: =IF(BU51="","",IF(BK51="","数量未入力",IF(CE51="","消費税区分未入力",ROUNDDOWN(BK51*BU51,0)))) -> 
CO52: =IF(BU52="","",IF(BK52="","数量未入力",IF(CE52="","消費税区分未入力",ROUNDDOWN(BK52*BU52,0)))) -> 
CO53: =IF(BU53="","",IF(BK53="","数量未入力",IF(CE53="","消費税区分未入力",ROUNDDOWN(BK53*BU53,0)))) -> 
CO55: =IF(BU55="","",IF(BK55="","数量未入力",IF(CE55="","消費税区分未入力",ROUNDDOWN(BK55*BU55,0)))) -> 
CO56: =IF(BU56="","",IF(BK56="","数量未入力",IF(CE56="","消費税区分未入力",ROUNDDOWN(BK56*BU56,0)))) -> 
CO57: =IF(BU57="","",IF(BK57="","数量未入力",IF(CE57="","消費税区分未入力",ROUNDDOWN(BK57*BU57,0)))) -> 
G58: 頁計 | CO58: =SUMIF($CE$47:$CN$57,"<>*税端数*",$CO$47:$DJ$57) -> 1050000
G59: 総合計 | CO59: =SUM($CO$58,$CO$163,$CO$225,$CO$287,$CO$349) -> 1050000
G61: 消費税区分 | Y61: １０％ | AQ61: ８％（軽） | BI61: ８％ | CA61: 対象外 | CS61: 総合計
G64: 税抜金額 | T64: 100000000 | Y64: =SUM(SUMIF($CE$47:$CN$57,"１０％",$CO$47:$DJ$57),SUMIF($CE$137:$CN$162,"１０％",$CO$137:$DJ$162),SUMIF($CE$199:$CN$224,"１０％",$CO$199:$DJ$224),SUMIF($CE$261:$CN$286,"１０％",$CO$261:$DJ$286),SUMIF($CE$323:$CN$348,"１０％",$CO$323:$DJ$348)) -> 1000000 | AQ64: =SUM(SUMIF($CE$47:$CN$57,"８％(軽)",$CO$47:$DJ$57),SUMIF($CE$137:$CN$162,"８％(軽)",$CO$137:$DJ$162),SUMIF($CE$199:$CN$224,"８％(軽)",$CO$199:$DJ$224),SUMIF($CE$261:$CN$286,"８％(軽)",$CO$261:$DJ$286),SUMIF($CE$323:$CN$348,"８％(軽)",$CO$323:$DJ$348)) -> 50000 | BI64: =SUM(SUMIF($CE$47:$CN$57,"８％",$CO$47:$DJ$57),SUMIF($CE$137:$CN$162,"８％",$CO$137:$DJ$162),SUMIF($CE$199:$CN$224,"８％",$CO$199:$DJ$224),SUMIF($CE$261:$CN$286,"８％",$CO$261:$DJ$286),SUMIF($CE$323:$CN$348,"８％",$CO$323:$DJ$348)) -> 0 | CA64: =SUM(SUMIF($CE$47:$CN$57,"対象外",$CO$47:$DJ$57),SUMIF($CE$137:$CN$162,"対象外",$CO$137:$DJ$162),SUMIF($CE$199:$CN$224,"対象外",$CO$199:$DJ$224),SUMIF($CE$261:$CN$286,"対象外",$CO$261:$DJ$286),SUMIF($CE$323:$CN$348,"対象外",$CO$323:$DJ$348)) -> 0 | CS64: =SUM(Y64:CR66) -> 1050000
G67: 消費税額 | T67: 10000000 | Y67: =IF(Y64="","",SUM(ROUNDDOWN(Y64*10%,0),SUM(SUMIF($CE$47:$CN$57,"税端数１０％",$CO$47:$DJ$57),SUMIF($CE$137:$CN$162,"税端数１０％",$CO$137:$DJ$162),SUMIF($CE$199:$CN$224,"税端数１０％",$CO$199:$DJ$224),SUMIF($CE$261:$CN$286,"税端数１０％",$CO$261:$DJ$286),SUMIF($CE$323:$CN$348,"税端数１０％",$CO$323:$DJ$348)))) -> 100000 | AQ67: =IF(AQ64="","",SUM(ROUNDDOWN(AQ64*8%,0),SUM(SUMIF($CE$47:$CN$57,"税端数８％(軽)",$CO$47:$DJ$57),SUMIF($CE$137:$CN$162,"税端数８％(軽)",$CO$137:$DJ$162),SUMIF($CE$199:$CN$224,"税端数８％(軽)",$CO$199:$DJ$224),SUMIF($CE$261:$CN$286,"税端数８％(軽)",$CO$261:$DJ$286),SUMIF($CE$323:$CN$348,"税端数８％(軽)",$CO$323:$DJ$348)))) -> 4000 | BI67: =IF(BI64="","",SUM(ROUNDDOWN(BI64*8%,0),SUM(SUMIF($CE$47:$CN$57,"税端数８％",$CO$47:$DJ$57),SUMIF($CE$137:$CN$162,"税端数８％",$CO$137:$DJ$162),SUMIF($CE$199:$CN$224,"税端数８％",$CO$199:$DJ$224),SUMIF($CE$261:$CN$286,"税端数８％",$CO$261:$DJ$286),SUMIF($CE$323:$CN$348,"税端数８％",$CO$323:$DJ$348)))) -> 0 | CA67: =IF(CA64="","",ROUNDDOWN(CA64*0,0)) -> 0 | CS67: =SUM(Y67:CR69) -> 104000
G70: 税込金額 | T70: 110000000 | Y70: =IF(Y64="","",SUM(Y64:AP69)) -> 1100000 | AQ70: =IF(AQ64="","",SUM(AQ64:BH69)) -> 54000 | BI70: =IF(BI64="","",SUM(BI64:BZ69)) -> 0 | CA70: =IF(CA64="","",SUM(CA64:CR69)) -> 0 | CS70: =IF(CS64="","",SUM(CS64:DJ69)) -> 1154000
G74: 【請求書作成 注意事項】 | CH74: ※担当者記入欄
DD75: （税抜）
G78: 1. 出来高で請求する場合、【出来高調書】（※1）を必ず添付すること | BV78: 工 種 | BZ78: 工種コード | CQ78: 工種が2種以上の場合 ↓ 内訳金額を入力
G82: 2. 本書に明細書添付の上、一式請求可能（消費税区分ごとの請求にすること）
G86: 3. 【交通費】【法定福利費】は税抜きとなるように逆算して入力（100/110）
G94: 2023年（令和5年）10月より消費税課税事業者の場合は登録番号を必ず入力（※2）
BV95: 承認印 | CG95: 確認印 | CZ95: 担当者印
G96: 2023年（令和5年）10月より内訳１行ごとの消費税計算は不可（※2）
G99: （※1）弊社ホームページでダウンロード可能
G101: （※2）適格請求書等保存方式「インボイス制度」 国税庁ホームページ参照
BC105: 1 | BG105: / | BK105: =SUM(1,IF(COUNTIF(内訳明細2,"<>")>0,1),IF(COUNTIF(内訳明細3,"<>")>0,1),IF(COUNTIF(内訳明細4,"<>")>0,1),IF(COUNTIF(内訳明細5,"<>")>0,1)) -> 1 | CO105: ='【始めに入力下さい】 基本情報入力'!$I$3 -> (株)ミスタービルド埼玉Ver.1.0
F111: =LEFT('【始めに入力下さい】 基本情報入力'!$C$25) ->  | AR111: 請 求 書 ②
CD115: 取引先コード | CS115: =$CS$7 ->  | CV115: =$CV$7 ->  | CY115: =$CY$7 ->  | DB115: =$DB$7 ->  | DE115: =$DE$7 ->  | DH115: =$DH$7 -> 
AR116: =IF($AV$8="","",$AV$8) ->  | AZ116: 年 | BC116: =IF($BG$8="","",$BG$8) ->  | BG116: 月 | BJ116: =IF($BN$8="","",$BN$8) ->  | BN116: 日
G117: 株式会社ミスタービルド埼玉 御中
CD119: 登録番号 | CS119: =$CS$11 -> 
G124: 工事件名 | S124: =IF($BO$32="","",$BO$32) ->  | BC124: 会社名（氏名） | BQ124: =IF('【始めに入力下さい】 基本情報入力'!$C$19="","",'【始めに入力下さい】 基本情報入力'!$C$19) -> 
AR131: 内訳明細②
G136: 日付 | Q136: 品目規格又は作業内容 | BA136: 単位 | BK136: 数量 | BU136: 単価 | CE136: 消費税区分 | CO136: 税抜金額
CO137: =IF(BU137="","",IF(BK137="","数量未入力",IF(CE137="","消費税区分未入力",ROUNDDOWN(BK137*BU137,0)))) -> 
G163: 頁計 | CO163: =SUMIF($CE$137:$CN$162,"<>*税端数*",$CO$137:$DJ$162) -> 0
CO164: =IF(CO199="","","※次頁有") -> 
BC167: 2 | BG167: / | BK167: =SUM(1,IF(COUNTIF(内訳明細2,"<>")>0,1),IF(COUNTIF(内訳明細3,"<>")>0,1),IF(COUNTIF(内訳明細4,"<>")>0,1),IF(COUNTIF(内訳明細5,"<>")>0,1)) -> 1 | CO167: =$CO$105 -> (株)ミスタービルド埼玉Ver.1.0
F173: =LEFT('【始めに入力下さい】 基本情報入力'!$C$25) ->  | AR173: 請 求 書 ③
CD177: 取引先コード | CS177: =$CS$7 ->  | CV177: =$CV$7 ->  | CY177: =$CY$7 ->  | DB177: =$DB$7 ->  | DE177: =$DE$7 ->  | DH177: =$DH$7 -> 
AR178: =IF($AV$8="","",$AV$8) ->  | AZ178: 年 | BC178: =IF($BG$8="","",$BG$8) ->  | BG178: 月 | BJ178: =IF($BN$8="","",$BN$8) ->  | BN178: 日
G179: 株式会社ミスタービルド埼玉 御中
CD181: 登録番号 | CS181: =$CS$11 -> 
G186: 工事件名 | S186: =IF($BO$32="","",$BO$32) ->  | BC186: 会社名（氏名） | BQ186: =IF('【始めに入力下さい】 基本情報入力'!$C$19="","",'【始めに入力下さい】 基本情報入力'!$C$19) -> 
AR193: 内訳明細③
G198: 日付 | Q198: 品目規格又は作業内容 | BA198: 単位 | BK198: 数量 | BU198: 単価 | CE198: 消費税区分 | CO198: 税抜金額
CO199: =IF(BU199="","",IF(BK199="","数量未入力",IF(CE199="","消費税区分未入力",ROUNDDOWN(BK199*BU199,0)))) -> 
G225: 頁計 | CO225: =SUMIF($CE$199:$CN$224,"<>*税端数*",$CO$199:$DJ$224) -> 0
CO226: =IF(CO261="","","※次頁有") -> 
BC229: 3 | BG229: / | BK229: =SUM(1,IF(COUNTIF(内訳明細2,"<>")>0,1),IF(COUNTIF(内訳明細3,"<>")>0,1),IF(COUNTIF(内訳明細4,"<>")>0,1),IF(COUNTIF(内訳明細5,"<>")>0,1)) -> 1 | CO229: =$CO$105 -> (株)ミスタービルド埼玉Ver.1.0
F235: =LEFT('【始めに入力下さい】 基本情報入力'!$C$25) ->  | AR235: 請 求 書 ④
CD239: 取引先コード | CS239: =$CS$7 ->  | CV239: =$CV$7 ->  | CY239: =$CY$7 ->  | DB239: =$DB$7 ->  | DE239: =$DE$7 ->  | DH239: =$DH$7 -> 
AR240: =IF($AV$8="","",$AV$8) ->  | AZ240: 年 | BC240: =IF($BG$8="","",$BG$8) ->  | BG240: 月 | BJ240: =IF($BN$8="","",$BN$8) ->  | BN240: 日
G241: 株式会社ミスタービルド埼玉 御中
CD243: 登録番号 | CS243: =$CS$11 -> 
G248: 工事件名 | S248: =IF($BO$32="","",$BO$32) ->  | BC248: 会社名（氏名） | BQ248: =IF('【始めに入力下さい】 基本情報入力'!$C$19="","",'【始めに入力下さい】 基本情報入力'!$C$19) -> 
AR255: 内訳明細④
G260: 日付 | Q260: 品目規格又は作業内容 | BA260: 単位 | BK260: 数量 | BU260: 単価 | CE260: 消費税区分 | CO260: 税抜金額
CO261: =IF(BU261="","",IF(BK261="","数量未入力",IF(CE261="","消費税区分未入力",ROUNDDOWN(BK261*BU261,0)))) -> 
G287: 頁計 | CO287: =SUMIF($CE$261:$CN$286,"<>*税端数*",$CO$261:$DJ$286) -> 0
CO288: =IF(CO323="","","※次頁有") -> 
BC291: 4 | BG291: / | BK291: =SUM(1,IF(COUNTIF(内訳明細2,"<>")>0,1),IF(COUNTIF(内訳明細3,"<>")>0,1),IF(COUNTIF(内訳明細4,"<>")>0,1),IF(COUNTIF(内訳明細5,"<>")>0,1)) -> 1 | CO291: =$CO$105 -> (株)ミスタービルド埼玉Ver.1.0
F297: =LEFT('【始めに入力下さい】 基本情報入力'!$C$25) ->  | AR297: 請 求 書 ⑤
CD301: 取引先コード | CS301: =$CS$7 ->  | CV301: =$CV$7 ->  | CY301: =$CY$7 ->  | DB301: =$DB$7 ->  | DE301: =$DE$7 ->  | DH301: =$DH$7 -> 
AR302: =IF($AV$8="","",$AV$8) ->  | AZ302: 年 | BC302: =IF($BG$8="","",$BG$8) ->  | BG302: 月 | BJ302: =IF($BN$8="","",$BN$8) ->  | BN302: 日
G303: 株式会社ミスタービルド埼玉 御中
CD305: 登録番号 | CS305: =$CS$11 -> 
G310: 工事件名 | S310: =IF($BO$32="","",$BO$32) ->  | BC310: 会社名（氏名） | BQ310: =IF('【始めに入力下さい】 基本情報入力'!$C$19="","",'【始めに入力下さい】 基本情報入力'!$C$19) -> 
AR317: 内訳明細⑤
G322: 日付 | Q322: 品目規格又は作業内容 | BA322: 単位 | BK322: 数量 | BU322: 単価 | CE322: 消費税区分 | CO322: 税抜金額
CO323: =IF(BU323="","",IF(BK323="","数量未入力",IF(CE323="","消費税区分未入力",ROUNDDOWN(BK323*BU323,0)))) -> 
G349: 頁計 | CO349: =SUMIF($CE$323:$CN$348,"<>*税端数*",$CO$323:$DJ$348) -> 0
BC353: 5 | BG353: / | BK353: =SUM(1,IF(COUNTIF(内訳明細2,"<>")>0,1),IF(COUNTIF(内訳明細3,"<>")>0,1),IF(COUNTIF(内訳明細4,"<>")>0,1),IF(COUNTIF(内訳明細5,"<>")>0,1)) -> 1 | CO353: =$CO$105 -> (株)ミスタービルド埼玉Ver.1.0

Sheet 【始めに入力下さい】 基本情報入力
A1: 基 本 情 報 入 力
I3: (株)ミスタービルド埼玉Ver.1.0
B5: 以下の項目をすべて入力してください。
B6: ただし、登録番号の入力は2023年（令和5年）10月末締分請求書からになります。
B9: 取引先コード（6桁）
B10: 注文書・注文請書に記載の番号を入力してください。
B12: 登録番号（14桁）
B13: 2023年（令和5年）10月末締分請求書より、
B14: 消費税課税事業者の場合は必ず入力してください。
B15: 制度に関する詳細は、国税庁のホームページをご参照ください。
B17: 住所 | J17: 請求書への表示 | K17: 有
B19: 会社名（氏名） | J19: 請求書への表示 | K19: 有
B20: 法人格は略称を使用しないで入力してください。
B21: ＜例＞○□建設(株)の場合 ・・・ ○□建設 株式会社
B22: なお、請求書への表示を「無」にした場合でも、
B23: 2枚目以降にはこちらに入力した内容が表示されます。
B25: 会社名（氏名）ヨミガナ
B26: 法人格を除いた全角カタカナで入力してください。
B27: ＜例＞○□建設(株)の場合 ・・・ マルシカクケンセツ
B29: 電話番号（TEL) | D29: - | F29: - | J29: 請求書への表示 | K29: 有
B32: 上記項目の入力がすべて終わりましたら「請求書」シートに移動し、
B33: 色付きの項目のみを入力して請求書の出力を行ってください。

Sheet 消費税マスタ
A1: 消 費 税 マ ス タ
B3: 消費税端数処理 | D3: 無
B4: 原則、「無」から変更しないでください。
B5: 「有」にすることで請求書シートの消費税区分で「税端数」を選択できるようになります。
B6: 当該行の「品目規格又は作業内容」には「消費税額端数調整」と入力してください。
B7: 「税端数」で入力した金額は内訳明細の頁計・総合計には集計されず、
B8: 「消費税率別内訳」の消費税額に直接加減算されます。
B10: ※注意事項
B11: 2023年（令和5年）10月末締分請求書より、適格請求書等保存方式が適用され、
B12: 内訳明細1行毎の消費税計算は税法上認められなくなります。
B13: 当該月請求分から「税端数」は絶対に使用しないでください。
B14: （請求書の差替えをお願いする可能性があります。予めご了承ください。）
C17: 無 | E17: 有
C18: １０％ | E18: １０％
C19: ８％(軽) | E19: ８％(軽)
C20: ８％ | E20: ８％
C21: 対象外 | E21: 対象外
E22: 税端数１０％
E23: 税端数８％(軽)
E24: 税端数８％

Sheet 請求書 (手書き用)
F3: =LEFT('【始めに入力下さい】 基本情報入力'!$C$25) ->  | AV3: 請 求 書
CD7: 取引先コード
G8: 株式会社ミスタービルド埼玉 御中 | BD8: 年 | BK8: 月 | BR8: 日
CD11: 登録番号
J13: 下記のとおり御請求申し上げます。
G16: 当月請求額（税込）
BD17: 住所
BD21: 会社名 （氏名）
G22: 立替控除額（税込）
G26: 当月請求額（税込） （立替控除後） | DB26: 印
BD27: TEL
G32: 所長名 （ミスタービルド埼玉） | BC32: 工事件名
G36: 注文番号 | BC36: 品目及内容
AU41: 内訳明細
G46: 日付 | Q46: 品目規格又は作業内容 | BA46: 単位 | BK46: 数量 | BU46: 単価 | CE46: 消費税区分 | CO46: 税抜金額
G58: 頁計
G59: 総合計
G61: 消費税区分 | Y61: １０％ | AQ61: ８％（軽） | BI61: ８％ | CA61: 対象外 | CS61: 総合計
G64: 税抜金額 | T64: 100000000
G67: 消費税額 | T67: 10000000
G70: 税込金額 | T70: 110000000
G74: 【請求書作成 注意事項】 | CH74: ※担当者記入欄
DD75: （税抜）
G78: 1. 出来高で請求する場合、【出来高調書】（※1）を必ず添付すること | BV78: 工 種 | BZ78: 工種コード | CQ78: 工種が2種以上の場合 ↓ 内訳金額を入力
G82: 2. 本書に明細書添付の上、一式請求可能（消費税区分ごとの請求にすること）
G86: 3. 【交通費】【法定福利費】は税抜きとなるように逆算して入力（100/110）
G94: 2023年（令和5年）10月より消費税課税事業者の場合は登録番号を必ず入力（※2）
BV95: 承認印 | CG95: 確認印 | CZ95: 担当者印
G96: 2023年（令和5年）10月より内訳１行ごとの消費税計算は不可（※2）
G99: （※1）弊社ホームページでダウンロード可能
G101: （※2）適格請求書等保存方式「インボイス制度」 国税庁ホームページ参照
BG105: / | CO105: ='【始めに入力下さい】 基本情報入力'!$I$3 -> (株)ミスタービルド埼玉Ver.1.0
F111: =LEFT('【始めに入力下さい】 基本情報入力'!$C$25) ->  | AR111: 請 求 書
CD115: 取引先コード
AZ116: 年 | BG116: 月 | BN116: 日
G117: 株式会社ミスタービルド埼玉 御中
CD119: 登録番号
G124: 工事件名 | BC124: 会社名（氏名）
AR131: 内訳明細
G136: 日付 | Q136: 品目規格又は作業内容 | BA136: 単位 | BK136: 数量 | BU136: 単価 | CE136: 消費税区分 | CO136: 税抜金額
CO137: =IF(BU137="","",IF(BK137="","数量未入力",IF(CE137="","消費税区分未入力",ROUNDDOWN(BK137*BU137,0)))) -> 
G163: 頁計
BG167: / | CO167: =$CO$105 -> (株)ミスタービルド埼玉Ver.1.0

Sheet その他
B2: Ｑ１. | C2: 入力欄に自社のExcel等からコピー＆ペーストをしようとしたらエラーがでてしまった。
B4: Ａ１. | C4: ペースト先のセルが結合セルのため、そのままペーストはできません。
C5: ペースト時に「形式を選択して貼付」→「数式」を選択してください。
C6: コピー元が数式の場合は一度値に変換してから上記の処理を行ってください。
C7: また、コピー＆ペースト作業は１列ずつ行ってください（複数列同時にはできません）。
B10: Ｑ２. | C10: ページ数を指定してPDFに変換することは可能か。
B12: Ａ２. | C12: 予め印刷プリンターに「Microsoft Print to PDF」を選択し、「請求書」シート内の
C13: 用紙右側にある「印刷」ボタンを押すことで変換可能です。
C14: （「Microsoft Print to PDF」・・・Windows10以降のパソコンに標準搭載の仮想プリンター。）
C16: 「Microsoft Print to PDF」を使用しない場合は以下の手順で変換可能です。
C17: ※パソコン環境によって細部が異なる可能性があります。予めご了承ください。
C18: 名前を付けて保存 → ファイルの種類「PDF」を選択 → 「オプション」押下
C19: →「ページ指定」開始ページと終了ページを指定し、「OK」押下 → 「保存」押下
C21: 「名前を付けて保存」ウインドウ
D36: ↓
C38: 「オプション」ウインドウ

Sheet 請求書(入力例)
F3: マ | AR3: 請 求 書
CD7: 取引先コード | CS7: 0 | CV7: 0 | CY7: 1 | DB7: 7 | DE7: 3 | DH7: 2
AR8: 2022 | AZ8: 年 | BC8: 11 | BG8: 月 | BJ8: 30 | BN8: 日
G9: 株式会社ミスタービルド埼玉 | AI9: 御中
CD11: 登録番号 | CS11: T1234567890123
J15: 下記のとおり御請求申し上げます。
BD17: 住所 | BO17: ○○県○○市1-2-3
G18: 当月請求額（税込） | Y18: 12115400
BD21: 会社名 （氏名） | BO21: ○□建設 株式会社
G22: 立替控除額（税込） | Y22: -110000
G26: 当月請求額（税込） （立替控除後） | Y26: =Y18+Y22 -> 12005400 | DB26: 印
BD27: TEL | BO27: 048 - 222 - 3333
G32: 所長名 （ミスタービルド埼玉） | Y32: ○○ ○○ | BC32: 工事件名 | BO32: □□マンション新築工事
G36: 注文番号 | Y36: 12345 | BC36: 品目及内容 | BO36: ○○工事
AR41: 内訳明細
G46: 日付 | Q46: 品目規格又は作業内容 | BA46: 単位 | BK46: 数量 | BU46: 単価 | CE46: 消費税区分 | CO46: 税抜金額
G47: 2021-04-30 | Q47: ○○工事 | BA47: 式 | BK47: 1 | BU47: 10000000 | CE47: １０％ | CO47: 10000000
G48: 2021-04-15 | Q48: 飲料代 | BA48: 個 | BK48: 50 | BU48: 100 | CE48: ８％(軽) | CO48: 5000
G49: 2021-04-30 | Q49: □□工事（経過措置） | BA49: 式 | BK49: 1 | BU49: 500000 | CE49: ８％ | CO49: 500000
G50: 2021-04-30 | Q50: △△（非課税対象） | BA50: 個 | BK50: 1 | BU50: 20000 | CE50: 対象外 | CO50: 20000
CO51: =IF(BU51="","",IF(BK51="","数量未入力",IF(CE51="","消費税区分未入力",ROUNDDOWN(BK51*BU51,0)))) -> 
CO52: =IF(BU52="","",IF(BK52="","数量未入力",IF(CE52="","消費税区分未入力",ROUNDDOWN(BK52*BU52,0)))) -> 
CO53: =IF(BU53="","",IF(BK53="","数量未入力",IF(CE53="","消費税区分未入力",ROUNDDOWN(BK53*BU53,0)))) -> 
CO55: =IF(BU55="","",IF(BK55="","数量未入力",IF(CE55="","消費税区分未入力",ROUNDDOWN(BK55*BU55,0)))) -> 
CO56: =IF(BU56="","",IF(BK56="","数量未入力",IF(CE56="","消費税区分未入力",ROUNDDOWN(BK56*BU56,0)))) -> 
CO57: =IF(BU57="","",IF(BK57="","数量未入力",IF(CE57="","消費税区分未入力",ROUNDDOWN(BK57*BU57,0)))) -> 
G58: 頁計 | CO58: =SUMIF($CE$47:$CN$57,"<>*税端数*",$CO$47:$DJ$57) -> 10525000
G59: 総合計 | CO59: =SUM($CO$58,$CO$163,$CO$237,$CO$287,$CO$349) -> 11025000
G61: 消費税区分 | Y61: １０％ | AQ61: ８％（軽） | BI61: ８％ | CA61: 対象外 | CS61: 総合計
G64: 税抜金額 | T64: 100000000 | Y64: =SUM(SUMIF($CE$47:$CN$57,"１０％",$CO$47:$DJ$57),SUMIF($CE$137:$CN$162,"１０％",$CO$137:$DJ$162),SUMIF($CE$199:$CN$224,"１０％",$CO$199:$DJ$224),SUMIF($CE$261:$CN$286,"１０％",$CO$261:$DJ$286),SUMIF($CE$323:$CN$348,"１０％",$CO$323:$DJ$348)) -> 10500000 | AQ64: =SUM(SUMIF($CE$47:$CN$57,"８％(軽)",$CO$47:$DJ$57),SUMIF($CE$137:$CN$162,"８％(軽)",$CO$137:$DJ$162),SUMIF($CE$199:$CN$224,"８％(軽)",$CO$199:$DJ$224),SUMIF($CE$261:$CN$286,"８％(軽)",$CO$261:$DJ$286),SUMIF($CE$323:$CN$348,"８％(軽)",$CO$323:$DJ$348)) -> 5000 | BI64: =SUM(SUMIF($CE$47:$CN$57,"８％",$CO$47:$DJ$57),SUMIF($CE$137:$CN$162,"８％",$CO$137:$DJ$162),SUMIF($CE$199:$CN$224,"８％",$CO$199:$DJ$224),SUMIF($CE$261:$CN$286,"８％",$CO$261:$DJ$286),SUMIF($CE$323:$CN$348,"８％",$CO$323:$DJ$348)) -> 500000 | CA64: =SUM(SUMIF($CE$47:$CN$57,"対象外",$CO$47:$DJ$57),SUMIF($CE$137:$CN$162,"対象外",$CO$137:$DJ$162),SUMIF($CE$199:$CN$224,"対象外",$CO$199:$DJ$224),SUMIF($CE$261:$CN$286,"対象外",$CO$261:$DJ$286),SUMIF($CE$323:$CN$348,"対象外",$CO$323:$DJ$348)) -> 20000 | CS64: =SUM(Y64:CR66) -> 11025000
G67: 消費税額 | T67: 10000000 | Y67: =IF(Y64="","",SUM(ROUNDDOWN(Y64*10%,0),SUM(SUMIF($CE$47:$CN$57,"税端数１０％",$CO$47:$DJ$57),SUMIF($CE$137:$CN$162,"税端数１０％",$CO$137:$DJ$162),SUMIF($CE$199:$CN$224,"税端数１０％",$CO$199:$DJ$224),SUMIF($CE$261:$CN$286,"税端数１０％",$CO$261:$DJ$286),SUMIF($CE$323:$CN$348,"税端数１０％",$CO$323:$DJ$348)))) -> 1050000 | AQ67: =IF(AQ64="","",SUM(ROUNDDOWN(AQ64*8%,0),SUM(SUMIF($CE$47:$CN$57,"税端数８％(軽)",$CO$47:$DJ$57),SUMIF($CE$137:$CN$162,"税端数８％(軽)",$CO$137:$DJ$162),SUMIF($CE$199:$CN$224,"税端数８％(軽)",$CO$199:$DJ$224),SUMIF($CE$261:$CN$286,"税端数８％(軽)",$CO$261:$DJ$286),SUMIF($CE$323:$CN$348,"税端数８％(軽)",$CO$323:$DJ$348)))) -> 400 | BI67: =IF(BI64="","",SUM(ROUNDDOWN(BI64*8%,0),SUM(SUMIF($CE$47:$CN$57,"税端数８％",$CO$47:$DJ$57),SUMIF($CE$137:$CN$162,"税端数８％",$CO$137:$DJ$162),SUMIF($CE$199:$CN$224,"税端数８％",$CO$199:$DJ$224),SUMIF($CE$261:$CN$286,"税端数８％",$CO$261:$DJ$286),SUMIF($CE$323:$CN$348,"税端数８％",$CO$323:$DJ$348)))) -> 40000 | CA67: =IF(CA64="","",ROUNDDOWN(CA64*0,0)) -> 0 | CS67: =SUM(Y67:CR69) -> 1090400
G70: 税込金額 | T70: 110000000 | Y70: =IF(Y64="","",SUM(Y64:AP69)) -> 11550000 | AQ70: =IF(AQ64="","",SUM(AQ64:BH69)) -> 5400 | BI70: =IF(BI64="","",SUM(BI64:BZ69)) -> 540000 | CA70: =IF(CA64="","",SUM(CA64:CR69)) -> 20000 | CS70: =IF(CS64="","",SUM(CS64:DJ69)) -> 12115400
G74: 【請求書作成 注意事項】 | CH74: ※担当者記入欄
DD75: （税抜）
G78: 1. 出来高で請求する場合、【出来高調書】（※1）を必ず添付すること | BV78: 工 種 | BZ78: 工種コード | CQ78: 工種が2種以上の場合 ↓ 内訳金額を入力
G82: 2. 本書に明細書添付の上、一式請求可能（消費税区分ごとの請求にすること）
G86: 3. 【交通費】【法定福利費】は税抜きとなるように逆算して入力（100/110）
G94: 2023年（令和5年）10月より消費税課税事業者の場合は登録番号を必ず入力（※2）
BV95: 承認印 | CG95: 確認印 | CZ95: 担当者印
G96: 2023年（令和5年）10月より内訳１行ごとの消費税計算は不可（※2）
G99: （※1）弊社ホームページでダウンロード可能
G101: （※2）適格請求書等保存方式「インボイス制度」 国税庁ホームページ参照
BC105: 1 | BG105: / | BK105: 2 | CO105: ='【始めに入力下さい】 基本情報入力'!$I$3 -> (株)ミスタービルド埼玉Ver.1.0
G109: 頁計 | CO109: 10525000
G110: 総合計 | CO110: 11025000
G111: 消費税率別内訳 | CO111: ※次頁有
G114: 消費税区分 | Y114: １０％ | AQ114: ８％（軽） | BI114: ８％ | CA114: 対象外 | CS114: 総合計
G117: 税抜金額 | T117: 100000000 | Y117: 10500000 | AQ117: 5000 | BI117: 500000 | CA117: 20000 | CS117: 11025000
G120: 消費税額 | T120: 10000000 | Y120: 1050000 | AQ120: 400 | BI120: 40000 | CA120: 0 | CS120: 1090400
G123: 税込金額 | T123: 110000000 | Y123: 11550000 | AQ123: 5400 | BI123: 540000 | CA123: 20000 | CS123: 12115400
F128: ※担当者記入欄 | AR128: 注文金額（税抜） | CD128: 既出来高金額（税抜）
G131: 部門コード 工事番号 | AR131: 当初金額 | CD131: 請求済額
G135: 注文番号 | S135: 12345 | AR135: 増減金額
G139: 決裁番号 | AR139: 合計
G145: 工種及要素 内訳 | K145: 経理科目コード | AA145: 工種コード | AM145: 税抜金額 | BK145: 当月請求額（税込） | CO145: 12115400
BK148: 立替控除額（税込） | CO148: -100000
BK151: 当月支払額（税込） | CO151: 12015400
BK157: 当月出来高（税抜） （立替振替を除く額）
BK161: 取極残金（税抜）
CO165: 整理No.
G170: 照合印 | AE170: 決裁印 | BA170: 確認印 | CY170: 担当者印
BC179: 1 | BG179: / | BK179: 2 | CO179: (株)ミスタービルド埼玉Ver.1.0
F185: マ | AR185: 請 求 書 ②
CD189: 取引先コード | CS189: 0 | CV189: 0 | CY189: 1 | DB189: 7 | DE189: 3 | DH189: 2
AR190: 2022 | AZ190: 年 | BC190: 11 | BG190: 月 | BJ190: 30 | BN190: 日
G191: 株式会社ミスタービルド埼玉 | AI191: 御中
CD193: 登録番号 | CS193: T1234567890123
G198: 工事件名 | S198: □□マンション新築工事 | BC198: 会社名（氏名） | BQ198: ○□建設 株式会社
AR205: 内訳明細②
G210: 日付 | Q210: 品目規格又は作業内容 | BA210: 単位 | BK210: 数量 | BU210: 単価 | CE210: 消費税区分 | CO210: 税抜金額
G211: 2022-11-30 | Q211: ○○工事 | BA211: 式 | BK211: 1 | BU211: 500000 | CE211: １０％ | CO211: 500000
G237: 頁計 | CO237: 500000
BC241: 2 | BG241: / | BK241: 2 | CO241: (株)ミスタービルド埼玉Ver.1.0
